[Event "EYCC O18-ch 2024"]
[Site "Prague"]
[Date "2024.08.28"]
[Round "6.13"]
[White "Dogias, Christos"]
[Black "Paseka, Matyas"]
[Result "1-0"]
[ECO "B51"]
[WhiteElo "2047"]
[BlackElo "2281"]
[Annotator "RC"]
[PlyCount "77"]
[EventDate "2024.08.19"]
[EventType "swiss"]
[EventCountry "CZE"]
[SourceTitle "playchess.com"]
[Source "ChessBase"]
[SourceQuality "1"]
[TimeControl "5400+30"]

1. e4 {[%emt 0:00:03]} c5 {[%emt 0:00:06]} 2. Nf3 {[%emt 0:00:05]} d6 {[%emt 0:00:05]} 3. Bb5+ {[%emt 0:00:03]} Nd7 {[%emt 0:00:06]} 4. c3 {[%emt 0:00:11]} Ngf6 {[%emt 0:00:32]} 5. Bd3 {[%emt 0:00:07]} b6 {[%emt 0:04:23]} 6. O-O {[%emt 0:00:31]} Bb7 {[%emt 0:00:06]} 7. Re1 {[%emt 0:00:14]} e5 {[%emt 0:02:59]} 8. Bc2 {[%emt 0:01:24]} Be7 {[%emt 0:00:51]} 9. d4 {[%emt 0:01:24]} O-O {[%emt 0:00:41]} 10. d5 {[%emt 0:01:56]} Ne8 {[%emt 0:06:20]} 11. c4 {[%emt 0:07:38]} Kh8 {[%emt 0:12:39]} 12. Nc3 {[%emt 0:00:40]} g6 {[%emt 0:03:45]} 13. g3 {[%emt 0:12:15]} Ng7 {[%emt 0:00:58]} 14. h4 {[%emt 0:18:01]} Nf6 {[%emt 0:01:59]} 15. Nh2 {[%emt 0:07:58]} Qd7 {[%emt 0:05:06]} 16. a4 {[%emt 0:03:48]} Nfh5 {[%emt 0:09:52]} 17. Bh6 {[%emt 0:06:36]} Rg8 {[%emt 0:07:30]} 18. Nf3 {[%emt 0:06:57]} Raf8 {[%emt 0:03:24]} 19. Ng5 {[%emt 0:05:24]} a5 {[%emt 0:09:54]} 20. Bd3 {[%emt 0:00:45]} Bc8 {[%emt 0:01:47]} 21. Be2 {[%emt 0:02:21]} Nf6 {[%emt 0:11:06]} 22. Ra3 {[%emt 0:02:10]} Bd8 {[%emt 0:00:18]} 23. Bf1 {[%emt 0:01:37]} Qe7 {[%emt 0:01:37]} 24. Bh3 {[%emt 0:04:06]} Bxh3 {[%emt 0:00:39]} 25. Nxh3 {[%emt 0:00:02]} Re8 {[%emt 0:00:43]} 26. Nb5 {[%emt 0:02:40]} Rgf8 {[%emt 0:00:38]} 27. Bg5 {[%emt 0:02:38]} Qd7 {[%emt 0:00:31]} 28. Bxf6 {[%emt 0:00:28]} Bxf6 {[%emt 0:00:06]} 29. Kg2 {[%emt 0:00:50]} h6 {[%emt 0:01:22]} 30. Rae3 {[%emt 0:04:38]} Bd8 {[%emt 0:01:06]} 31. Qe2 {[%emt 0:00:36]} Kh7 {[%emt 0:03:40]} 32. b3 {[%emt 0:00:32]} f5 {[%emt 0:01:39]} 33. f4 {[%emt 0:00:42]} Bf6 {[%emt 0:02:08]} 34. exf5 {[%emt 0:02:02]} gxf5 {[%emt 0:00:43]} 35. Nxd6 {[%emt 0:00:31]} e4 {[%emt 0:01:01]} 36. Nxe8 {[%emt 0:00:45]} Nxe8 {[%emt 0:00:06]} 37. Qh5 {[%emt 0:00:55]} Kg7 {[%emt 0:01:01]} 38. g4 {[%emt 0:01:16]} Nd6 {[%emt 0:05:06]} 39. Rg3 {[%emt 0:00:32]} 1-0

[Event "EYCC O18-ch 2024"]
[Site "Prague"]
[Date "2024.08.28"]
[Round "6.14"]
[White "Dehtiarov, Roman"]
[Black "Backiel, Hubert"]
[Result "1-0"]
[ECO "D31"]
[WhiteElo "2308"]
[BlackElo "2216"]
[Annotator "RC"]
[PlyCount "49"]
[EventDate "2024.08.19"]
[EventType "swiss"]
[EventCountry "CZE"]
[SourceTitle "playchess.com"]
[Source "ChessBase"]
[SourceQuality "1"]
[TimeControl "5400+30"]

1. d4 {[%emt 0:00:04]} d5 {[%emt 0:00:04]} 2. c4 {[%emt 0:00:11]} e6 {[%emt 0:00:04]} 3. Nc3 {[%emt 0:00:08]} c6 {[%emt 0:00:07]} 4. e4 {[%emt 0:00:07]} dxe4 {[%emt 0:00:06]} 5. Nxe4 {[%emt 0:00:08]} Bb4+ {[%emt 0:00:02]} 6. Bd2 {[%emt 0:00:14]} Qxd4 {[%emt 0:00:04]} 7. Bxb4 {[%emt 0:00:22]} Qxe4+ {[%emt 0:00:04]} 8. Be2 {[%emt 0:00:13]} Na6 {[%emt 0:00:53]} 9. Bd6 {[%emt 0:00:14]} Qxg2 {[%emt 0:24:07]} 10. Qd2 {[%emt 0:00:53]} Bd7 {[%emt 0:17:23]} 11. O-O-O {[%emt 0:05:21]} Nf6 {[%emt 0:04:12]} 12. Bf3 {[%emt 0:00:15]} Qg6 {[%emt 0:00:12]} 13. Ne2 {[%emt 0:00:17]} Ne4 {[%emt 0:07:57]} 14. Bxe4 {[%emt 0:13:28]} Qxe4 {[%emt 0:00:05]} 15. Bc7 {[%emt 0:00:31]} Qxc4+ {[%emt 0:14:21]} 16. Nc3 {[%emt 0:02:22]} Nc5 {[%emt 0:05:38]} 17. Qd6 {[%emt 0:01:09]} Rc8 {[%emt 0:02:33]} 18. Rd4 {[%emt 0:02:00]} Qa6 {[%emt 0:00:03]} 19. Ne4 {[%emt 0:04:31]} Qb5 {[%emt 0:21:34]} 20. Nxc5 {[%emt 0:00:24]} Rxc7 {[%emt 0:00:02]} 21. a4 {[%emt 0:00:37]} Qa5 {[%emt 0:00:58]} 22. b4 {[%emt 0:00:11]} Qb6 {[%emt 0:00:15]} 23. Nxd7 {[%emt 0:00:55]} Qa6 {[%emt 0:00:11]} 24. Nf6+ {[%emt 0:00:06]} gxf6 {[%emt 0:00:06]} 25. Qd8# {[%emt 0:00:04]} 1-0

[Event "EYCC O18-ch 2024"]
[Site "Prague"]
[Date "2024.08.28"]
[Round "6.14"]
[White "Seidl, Jan"]
[Black "Trushko, Andrii"]
[Result "1/2-1/2"]
[ECO "D30"]
[WhiteElo "2276"]
[BlackElo "2154"]
[Annotator "RC"]
[PlyCount "95"]
[EventDate "2024.08.19"]
[EventType "swiss"]
[EventCountry "CZE"]
[SourceTitle "playchess.com"]
[Source "ChessBase"]
[SourceQuality "1"]
[TimeControl "5400+30"]

1. d4 {[%emt 0:00:06]} d5 {[%emt 0:00:07]} 2. c4 {[%emt 0:00:03]} c6 {[%emt 0:00:04]} 3. Nf3 {[%emt 0:00:06]} Nf6 {[%emt 0:00:04]} 4. e3 {[%emt 0:00:06]} e6 {[%emt 0:01:06]} 5. Nbd2 {[%emt 0:01:04]} Nbd7 {[%emt 0:00:08]} 6. b3 {[%emt 0:00:15]} b6 {[%emt 0:01:10]} 7. Bd3 {[%emt 0:03:36]} Bb7 {[%emt 0:00:32]} 8. Bb2 {[%emt 0:06:49]} Be7 {[%emt 0:00:52]} 9. e4 {[%emt 0:00:55]} dxe4 {[%emt 0:00:19]} 10. Nxe4 {[%emt 0:00:07]} Nxe4 {[%emt 0:00:20]} 11. Bxe4 {[%emt 0:00:04]} Nf6 {[%emt 0:00:07]} 12. Bc2 {[%emt 0:00:56]} O-O {[%emt 0:02:23]} 13. Qd3 {[%emt 0:01:52]} Bb4+ {[%emt 0:07:41]} 14. Kf1 {[%emt 0:00:19]} Qe7 {[%emt 0:01:26]} 15. Ng5 {[%emt 0:23:10]} g6 {[%emt 0:05:21]} 16. h4 {[%emt 0:04:33]} Ba3 {[%emt 0:08:12]} 17. Bxa3 {[%emt 0:10:58]} Qxa3 {[%emt 0:00:02]} 18. h5 {[%emt 0:00:18]} Qa5 {[%emt 0:06:31]} 19. Qg3 {[%emt 0:11:16]} Qd2 {[%emt 0:06:43]} 20. Nxh7 {[%emt 0:16:50]} Nxh7 {[%emt 0:06:56]} 21. hxg6 {[%emt 0:00:06]} Qxc2 {[%emt 0:01:42]} 22. Rxh7 {[%emt 0:00:15]} fxg6 {[%emt 0:04:42]} 23. Rxb7 {[%emt 0:00:49]} Rxf2+ {[%emt 0:01:48]} 24. Qxf2 {[%emt 0:00:05]} Rf8 {[%emt 0:00:04]} 25. Qxf8+ {[%emt 0:00:19]} Kxf8 {[%emt 0:00:01]} 26. Kg1 {[%emt 0:02:36]} Qd2 {[%emt 0:01:31]} 27. Rf1+ {[%emt 0:00:29]} Kg8 {[%emt 0:00:34]} 28. Rxa7 {[%emt 0:02:27]} Qxd4+ {[%emt 0:00:07]} 29. Kh1 {[%emt 0:00:15]} b5 {[%emt 0:00:36]} 30. Ra8+ {[%emt 0:00:21]} Kg7 {[%emt 0:00:06]} 31. cxb5 {[%emt 0:00:51]} cxb5 {[%emt 0:00:10]} 32. a4 {[%emt 0:01:44]} Qd5 {[%emt 0:01:16]} 33. Raf8 {[%emt 0:02:32]} Qxb3 {[%emt 0:01:00]} 34. axb5 {[%emt 0:00:55]} Qxb5 {[%emt 0:01:02]} 35. R8f7+ {[%emt 0:00:16]} Kh6 {[%emt 0:00:28]} 36. R7f3 {[%emt 0:00:07]} Qe5 {[%emt 0:00:24]} 37. Kg1 {[%emt 0:01:04]} g5 {[%emt 0:00:09]} 38. Kf2 {[%emt 0:02:13]} Qb2+ {[%emt 0:00:51]} 39. Kg3 {[%emt 0:00:44]} Qe5+ {[%emt 0:01:12]} 40. Kf2 {[%emt 0:00:07]} Kh5 {[%emt 0:00:07]} 41. Re1 {[%emt 0:01:19]} Qd4+ {[%emt 0:00:08]} 42. Rfe3 {[%emt 0:00:53]} g4 {[%emt 0:00:39]} 43. Kf1 {[%emt 0:02:38]} Kh4 {[%emt 0:02:56]} 44. Rxe6 {[%emt 0:00:24]} Qf4+ {[%emt 0:00:20]} 45. Kg1 {[%emt 0:00:30]} Qd4+ {[%emt 0:00:05]} 46. Kf1 {[%emt 0:00:11]} Qf4+ {[%emt 0:00:07]} 47. Kg1 {[%emt 0:00:06]} Qd4+ {[%emt 0:00:01]} 48. Kf1 {[%emt 0:00:15]} 1/2-1/2

[Event "EYCC O18-ch 2024"]
[Site "Prague"]
[Date "2024.08.28"]
[Round "6.15"]
[White "Zlatkov, Anton"]
[Black "Kusiak, Mateusz"]
[Result "0-1"]
[ECO "A06"]
[WhiteElo "2297"]
[BlackElo "1887"]
[Annotator "RC"]
[PlyCount "92"]
[EventDate "2024.08.19"]
[EventType "swiss"]
[EventCountry "CZE"]
[SourceTitle "playchess.com"]
[Source "ChessBase"]
[SourceQuality "1"]
[TimeControl "5400+30"]

1. Nf3 {[%emt 0:00:02]} d5 {[%emt 0:01:54]} 2. g3 {[%emt 0:00:04]} Nf6 {[%emt 0:00:11]} 3. Bg2 {[%emt 0:00:06]} c6 {[%emt 0:00:30]} 4. c4 {[%emt 0:00:15]} dxc4 {[%emt 0:00:06]} 5. O-O {[%emt 0:00:27]} Nbd7 {[%emt 0:00:03]} 6. Na3 {[%emt 0:00:50]} Nb6 {[%emt 0:00:05]} 7. Qc2 {[%emt 0:00:32]} g6 {[%emt 0:01:13]} 8. Nxc4 {[%emt 0:00:17]} Nxc4 {[%emt 0:00:04]} 9. Qxc4 {[%emt 0:00:04]} Bg7 {[%emt 0:00:06]} 10. d3 {[%emt 0:01:46]} O-O {[%emt 0:01:57]} 11. Bd2 {[%emt 0:02:22]} a5 {[%emt 0:03:32]} 12. e4 {[%emt 0:09:13]} Ne8 {[%emt 0:12:11]} 13. d4 {[%emt 0:13:19]} Nd6 {[%emt 0:02:25]} 14. Qd3 {[%emt 0:06:59]} Nb5 {[%emt 0:02:22]} 15. Be3 {[%emt 0:06:05]} Nxd4 {[%emt 0:00:20]} 16. Nxd4 {[%emt 0:00:35]} e5 {[%emt 0:00:05]} 17. Rfd1 {[%emt 0:07:57]} exd4 {[%emt 0:00:09]} 18. Bxd4 {[%emt 0:00:04]} Qxd4 {[%emt 0:00:10]} 19. Qxd4 {[%emt 0:00:04]} Bxd4 {[%emt 0:00:07]} 20. Rxd4 {[%emt 0:00:03]} Be6 {[%emt 0:00:07]} 21. a3 {[%emt 0:03:07]} Rfd8 {[%emt 0:04:02]} 22. Rad1 {[%emt 0:00:35]} Rxd4 {[%emt 0:00:08]} 23. Rxd4 {[%emt 0:00:34]} Kf8 {[%emt 0:11:28]} 24. f4 {[%emt 0:00:34]} Ke7 {[%emt 0:00:50]} 25. Kf2 {[%emt 0:00:10]} c5 {[%emt 0:01:18]} 26. Rd2 {[%emt 0:01:04]} Ra6 {[%emt 0:01:07]} 27. f5 {[%emt 0:10:32]} Bd7 {[%emt 0:15:28]} 28. g4 {[%emt 0:06:37]} Rd6 {[%emt 0:00:45]} 29. Rxd6 {[%emt 0:15:27]} Kxd6 {[%emt 0:00:06]} 30. fxg6 {[%emt 0:02:52]} fxg6 {[%emt 0:00:43]} 31. g5 {[%emt 0:00:54]} Ke5 {[%emt 0:00:28]} 32. Ke3 {[%emt 0:00:15]} Bc6 {[%emt 0:02:23]} 33. h4 {[%emt 0:06:19]} b6 {[%emt 0:04:57]} 34. Bf3 {[%emt 0:01:05]} b5 {[%emt 0:02:17]} 35. Be2 {[%emt 0:00:44]} c4 {[%emt 0:01:01]} 36. Bf3 {[%emt 0:03:58]} a4 {[%emt 0:09:28]} 37. Kd2 {[%emt 0:01:52]} Bxe4 {[%emt 0:04:00]} 38. Bg4 {[%emt 0:00:03]} Bc6 {[%emt 0:01:53]} 39. Kc3 {[%emt 0:00:58]} Kf4 {[%emt 0:00:16]} 40. Be6 {[%emt 0:00:23]} Kg3 {[%emt 0:00:05]} 41. Bg8 {[%emt 0:00:23]} Kxh4 {[%emt 0:00:08]} 42. Bxh7 {[%emt 0:00:13]} Kxg5 {[%emt 0:00:06]} 43. Kd4 {[%emt 0:00:31]} Kf6 {[%emt 0:00:51]} 44. Bg8 {[%emt 0:00:38]} g5 {[%emt 0:00:08]} 45. Kc5 {[%emt 0:00:24]} Be8 {[%emt 0:00:10]} 46. Bd5 {[%emt 0:01:38]} Ke5 {[%emt 0:00:07]} 0-1

[Event "EYCC O18-ch 2024"]
[Site "Prague"]
[Date "2024.08.28"]
[Round "6.15"]
[White "Bokhnak, Timofey"]
[Black "Sheahan, Ben"]
[Result "1-0"]
[ECO "C05"]
[WhiteElo "2273"]
[BlackElo "2043"]
[Annotator "RC"]
[PlyCount "87"]
[EventDate "2024.08.19"]
[EventType "swiss"]
[EventCountry "CZE"]
[SourceTitle "playchess.com"]
[Source "ChessBase"]
[SourceQuality "1"]
[TimeControl "5400+30"]

1. e4 {[%emt 0:00:04]} e6 {[%emt 0:00:05]} 2. d4 {[%emt 0:00:06]} d5 {[%emt 0:00:03]} 3. Nd2 {[%emt 0:00:17]} Nf6 {[%emt 0:00:05]} 4. e5 {[%emt 0:00:07]} Nfd7 {[%emt 0:00:04]} 5. f4 {[%emt 0:00:08]} c5 {[%emt 0:00:04]} 6. c3 {[%emt 0:00:06]} Nc6 {[%emt 0:00:04]} 7. Ndf3 {[%emt 0:00:09]} Qb6 {[%emt 0:00:47]} 8. a3 {[%emt 0:01:03]} a5 {[%emt 0:00:50]} 9. b3 {[%emt 0:00:17]} Be7 {[%emt 0:01:51]} 10. h4 {[%emt 0:01:17]} f6 {[%emt 0:02:22]} 11. Bd3 {[%emt 0:00:23]} O-O {[%emt 0:10:33]} 12. Bxh7+ {[%emt 0:06:15]} Kxh7 {[%emt 0:02:13]} 13. Ng5+ {[%emt 0:00:25]} Kh6 {[%emt 0:20:01]} 14. Nxe6 {[%emt 0:33:12]} f5 {[%emt 0:04:41]} 15. g4 {[%emt 0:01:47]} Nd8 {[%emt 0:11:18]} 16. Nxf8 {[%emt 0:03:52]} Nxf8 {[%emt 0:02:58]} 17. Ra2 {[%emt 0:01:00]} Kh7 {[%emt 0:08:19]} 18. gxf5 {[%emt 0:01:02]} Qh6 {[%emt 0:05:54]} 19. f6 {[%emt 0:02:39]} gxf6 {[%emt 0:01:06]} 20. f5 {[%emt 0:00:04]} Qg7 {[%emt 0:00:31]} 21. Qh5+ {[%emt 0:02:29]} Kg8 {[%emt 0:00:06]} 22. Qf3 {[%emt 0:01:01]} Kh8 {[%emt 0:01:12]} 23. e6 {[%emt 0:01:22]} Qh7 {[%emt 0:02:49]} 24. Rg2 {[%emt 0:01:58]} cxd4 {[%emt 0:03:53]} 25. cxd4 {[%emt 0:01:03]} a4 {[%emt 0:03:02]} 26. b4 {[%emt 0:01:01]} Nc6 {[%emt 0:03:27]} 27. Ne2 {[%emt 0:00:59]} Nxb4 {[%emt 0:02:50]} 28. axb4 {[%emt 0:01:04]} Bxb4+ {[%emt 0:00:09]} 29. Kf1 {[%emt 0:01:06]} a3 {[%emt 0:00:19]} 30. Rhg1 {[%emt 0:00:25]} a2 {[%emt 0:01:14]} 31. Rg8+ {[%emt 0:00:32]} Qxg8 {[%emt 0:00:05]} 32. Rxg8+ {[%emt 0:00:10]} Kxg8 {[%emt 0:00:05]} 33. Bb2 {[%emt 0:00:35]} Ra3 {[%emt 0:01:22]} 34. Qg4+ {[%emt 0:01:27]} Kh8 {[%emt 0:00:36]} 35. Qh5+ {[%emt 0:00:06]} Nh7 {[%emt 0:00:56]} 36. Qe8+ {[%emt 0:00:06]} Kg7 {[%emt 0:00:33]} 37. Qxc8 {[%emt 0:00:21]} Rb3 {[%emt 0:01:25]} 38. Qc2 {[%emt 0:00:28]} Rf3+ {[%emt 0:01:01]} 39. Kg2 {[%emt 0:00:05]} Re3 {[%emt 0:00:30]} 40. Qc7+ {[%emt 0:00:04]} Kg8 {[%emt 0:00:26]} 41. Qf7+ {[%emt 0:00:53]} Kh8 {[%emt 0:00:01]} 42. Nc1 {[%emt 0:01:26]} Ba3 {[%emt 0:01:15]} 43. Qxb7 {[%emt 0:01:05]} Re1 {[%emt 0:00:33]} 44. Qa8+ {[%emt 0:00:07]} 1-0

[Event "EYCC O18-ch 2024"]
[Site "Prague"]
[Date "2024.08.28"]
[Round "6.16"]
[White "Bermudez Ureba, Juan Diego"]
[Black "Vergara Anton, Diego"]
[Result "1/2-1/2"]
[ECO "B15"]
[WhiteElo "2183"]
[BlackElo "2416"]
[Annotator "RC"]
[PlyCount "117"]
[EventDate "2024.08.19"]
[EventType "swiss"]
[EventCountry "CZE"]
[SourceTitle "playchess.com"]
[Source "ChessBase"]
[SourceQuality "1"]
[TimeControl "5400+30"]

1. e4 {[%emt 0:00:01]} c6 {[%emt 0:00:09]} 2. d4 {[%emt 0:00:09]} d5 {[%emt 0:00:06]} 3. Nc3 {[%emt 0:00:10]} dxe4 {[%emt 0:00:43]} 4. Nxe4 {[%emt 0:00:06]} Nf6 {[%emt 0:00:32]} 5. Nxf6+ {[%emt 0:00:20]} exf6 {[%emt 0:00:03]} 6. Be3 {[%emt 0:00:13]} Bd6 {[%emt 0:02:16]} 7. Bd3 {[%emt 0:00:07]} Na6 {[%emt 0:04:50]} 8. c3 {[%emt 0:08:08]} Nc7 {[%emt 0:01:34]} 9. Ne2 {[%emt 0:01:31]} Nd5 {[%emt 0:05:23]} 10. Bd2 {[%emt 0:00:58]} Be6 {[%emt 0:04:17]} 11. O-O {[%emt 0:10:51]} Qc7 {[%emt 0:06:10]} 12. Kh1 {[%emt 0:08:11]} Ne7 {[%emt 0:15:17]} 13. c4 {[%emt 0:10:00]} Qd7 {[%emt 0:02:09]} 14. Qc2 {[%emt 0:05:45]} Rd8 {[%emt 0:01:50]} 15. Rae1 {[%emt 0:03:16]} h5 {[%emt 0:03:35]} 16. f4 {[%emt 0:02:05]} Bg4 {[%emt 0:17:07]} 17. Ng3 {[%emt 0:07:08]} O-O {[%emt 0:04:22]} 18. Bc3 {[%emt 0:06:58]} Rfe8 {[%emt 0:08:40]} 19. Ne4 {[%emt 0:12:51]} Bf5 {[%emt 0:03:49]} 20. Nxd6 {[%emt 0:02:20]} Bxd3 21. Qxd3 Qxd6 {[%emt 0:00:50]} 22. f5 {[%emt 0:00:40]} c5 {[%emt 0:05:45]} 23. Re4 {[%emt 0:05:38]} cxd4 {[%emt 0:00:52]} 24. Rxd4 {[%emt 0:00:04]} Qc7 {[%emt 0:00:10]} 25. Re1 {[%emt 0:03:19]} Rxd4 {[%emt 0:01:56]} 26. Qxd4 {[%emt 0:00:02]} Rd8 {[%emt 0:00:25]} 27. Qxa7 {[%emt 0:01:53]} Qd7 {[%emt 0:02:06]} 28. Qf2 {[%emt 0:03:47]} Nxf5 {[%emt 0:00:11]} 29. Rf1 {[%emt 0:00:57]} Nd6 {[%emt 0:00:47]} 30. Qd4 {[%emt 0:00:17]} Nf5 {[%emt 0:03:03]} 31. Qxd7 {[%emt 0:00:42]} Rxd7 {[%emt 0:00:01]} 32. Re1 {[%emt 0:00:09]} Rc7 {[%emt 0:00:24]} 33. b3 {[%emt 0:00:42]} b5 {[%emt 0:01:05]} 34. Ba5 {[%emt 0:06:09]} Ra7 {[%emt 0:00:06]} 35. b4 {[%emt 0:01:03]} bxc4 {[%emt 0:00:02]} 36. Re8+ {[%emt 0:00:35]} Kh7 {[%emt 0:00:02]} 37. Rc8 {[%emt 0:00:07]} Rd7 {[%emt 0:00:38]} 38. g3 {[%emt 0:00:22]} Rd1+ {[%emt 0:01:30]} 39. Kg2 {[%emt 0:00:02]} Rd2+ {[%emt 0:00:22]} 40. Kf3 {[%emt 0:00:00]} Rxa2 {[%emt 0:00:38]} 41. Rxc4 {[%emt 0:00:04]} Rxh2 {[%emt 0:00:17]} 42. b5 {[%emt 0:00:22]} Rb2 {[%emt 0:00:11]} 43. b6 {[%emt 0:00:27]} Rb3+ {[%emt 0:01:26]} 44. Kf2 {[%emt 0:01:19]} Rb5 {[%emt 0:00:40]} 45. Rb4 {[%emt 0:00:44]} Rxb4 {[%emt 0:01:55]} 46. Bxb4 {[%emt 0:00:02]} Nd4 {[%emt 0:00:05]} 47. b7 {[%emt 0:00:19]} Nc6 {[%emt 0:00:01]} 48. Bd6 {[%emt 0:00:12]} Kg6 {[%emt 0:00:30]} 49. b8=Q {[%emt 0:01:15]} Nxb8 {[%emt 0:00:01]} 50. Bxb8 {[%emt 0:00:01]} Kg5 {[%emt 0:00:57]} 51. Kf3 {[%emt 0:00:04]} h4 {[%emt 0:01:44]} 52. gxh4+ {[%emt 0:01:39]} Kxh4 {[%emt 0:00:06]} 53. Kf4 {[%emt 0:00:02]} Kh5 {[%emt 0:00:18]} 54. Kf5 {[%emt 0:00:05]} Kh6 {[%emt 0:01:26]} 55. Bd6 {[%emt 0:00:05]} Kh5 {[%emt 0:00:53]} 56. Be7 {[%emt 0:00:11]} g5 {[%emt 0:00:16]} 57. Kxf6 {[%emt 0:00:09]} g4 {[%emt 0:00:06]} 58. Bd6 {[%emt 0:00:04]} Kh4 {[%emt 0:00:06]} 59. Kxf7 {[%emt 0:00:05]} 1/2-1/2

[Event "EYCC O18-ch 2024"]
[Site "Prague"]
[Date "2024.08.28"]
[Round "6.16"]
[White "Thorisson, Benedikt"]
[Black "Sachilaru, Alexandru"]
[Result "0-1"]
[ECO "B11"]
[WhiteElo "2057"]
[BlackElo "2255"]
[Annotator "RC"]
[PlyCount "62"]
[EventDate "2024.08.19"]
[EventType "swiss"]
[EventCountry "CZE"]
[SourceTitle "playchess.com"]
[Source "ChessBase"]
[SourceQuality "1"]
[TimeControl "5400+30"]

1. e4 {[%emt 0:00:16]} c6 {[%emt 0:00:10]} 2. Nf3 {[%emt 0:00:08]} d5 {[%emt 0:00:10]} 3. Nc3 {[%emt 0:00:08]} Bg4 {[%emt 0:00:18]} 4. h3 {[%emt 0:02:03]} Bxf3 {[%emt 0:00:21]} 5. Qxf3 {[%emt 0:00:07]} e6 {[%emt 0:00:17]} 6. d4 {[%emt 0:01:56]} dxe4 {[%emt 0:06:31]} 7. Qxe4 {[%emt 0:03:04]} Nf6 {[%emt 0:00:30]} 8. Qd3 {[%emt 0:00:29]} Bd6 {[%emt 0:01:52]} 9. Be3 {[%emt 0:00:44]} O-O {[%emt 0:02:35]} 10. g3 {[%emt 0:07:50]} Nbd7 {[%emt 0:01:14]} 11. Bg2 {[%emt 0:00:43]} Re8 {[%emt 0:02:11]} 12. Rd1 {[%emt 0:03:10]} Qc7 {[%emt 0:02:29]} 13. O-O {[%emt 0:04:23]} Rad8 {[%emt 0:03:16]} 14. Ne4 {[%emt 0:05:06]} Nxe4 {[%emt 0:04:12]} 15. Bxe4 {[%emt 0:00:07]} h6 {[%emt 0:07:30]} 16. c4 {[%emt 0:01:44]} Nf6 {[%emt 0:04:18]} 17. Bg2 {[%emt 0:01:25]} Rd7 {[%emt 0:09:12]} 18. Qb1 {[%emt 0:03:00]} Red8 {[%emt 0:09:57]} 19. b4 {[%emt 0:01:53]} Bf8 {[%emt 0:05:01]} 20. a4 {[%emt 0:10:08]} a5 {[%emt 0:05:56]} 21. b5 {[%emt 0:03:46]} Bb4 {[%emt 0:05:51]} 22. Bf4 {[%emt 0:03:41]} Qc8 {[%emt 0:02:54]} 23. Be5 {[%emt 0:02:22]} cxb5 {[%emt 0:06:22]} 24. cxb5 {[%emt 0:14:52]} Nd5 {[%emt 0:01:08]} 25. Rc1 {[%emt 0:00:12]} Nc3 {[%emt 0:01:56]} 26. Qb2 {[%emt 0:05:07]} f6 {[%emt 0:01:23]} 27. Bf4 {[%emt 0:00:34]} Rxd4 {[%emt 0:01:23]} 28. Rc2 {[%emt 0:00:19]} Qc4 {[%emt 0:05:34]} 29. Bxb7 {[%emt 0:06:52]} Rd1 {[%emt 0:00:46]} 30. Bg2 {[%emt 0:01:37]} Rxf1+ {[%emt 0:00:06]} 31. Bxf1 {[%emt 0:00:27]} Rd1 {[%emt 0:00:07]} 0-1